fUST/lending_fUST_20260622
["ID","MTS","AMOUNT","RATE_DAILY","PERIOD"]
[425994341,1782086545000,220.81075257,0.00023011,110]
[425994346,1782086785000,220.81075256,0.00023048,110]
[425994352,1782087002000,-51.26917569,0.00010545,2]
[425994351,1782087002000,-306.24,0.00010327,2]
[425994354,1782087003000,-118.79458021,0.00010762,2]
[425994353,1782087003000,-254.97082431,0.00010545,2]
[425994355,1782087023000,-532.22330927,0.00010655,2]
[425994356,1782087027000,-325.37338204,0.00010655,2]
[425994358,1782087029000,-285.21233772,0.00010655,2]
[425994357,1782087029000,-302.76163202,0.00010655,2]
[425994359,1782087030000,-199.53298916,0.00010655,2]
[425994360,1782087031000,-254.7799585,0.00010655,2]
[425994417,1782087032000,-239.64878799,0.00010655,2]
[425994470,1782087033000,-499.89026345,0.00010655,2]
[425994471,1782087034000,-391.16871995,0.00010655,2]
[425994472,1782087035000,-715.97383072,0.00010655,2]
[425994473,1782087036000,-500.0,0.00010655,2]
[425994533,1782087040000,-936.6377374,0.00010548,2]
[425994531,1782087040000,-152.0,0.00010548,2]
[425994642,1782087041000,-151.0,0.00013492,2]
[425994624,1782087041000,-151.0,0.00013492,2]
[425994622,1782087041000,-600.0,0.00013041,2]
[425994619,1782087041000,-300.0,0.00012786,2]
[425994610,1782087041000,-300.0,0.00012786,2]
[425994616,1782087041000,-300.0,0.00012786,2]
[425994612,1782087041000,-300.0,0.00012786,2]
[425994614,1782087041000,-300.0,0.00012786,2]
[425994629,1782087041000,-151.0,0.00013492,2]
[425994617,1782087041000,-300.0,0.00012786,2]
[425994627,1782087041000,-151.0,0.00013492,2]
[425994640,1782087041000,-151.0,0.00013492,2]
[425994630,1782087041000,-151.0,0.00013492,2]
[425994626,1782087041000,-151.0,0.00013492,2]
[425994607,1782087041000,-300.0,0.00012786,2]
[425994639,1782087041000,-151.0,0.00013492,2]
[425994632,1782087041000,-151.0,0.00013492,2]
[425994634,1782087041000,-151.0,0.00013492,2]
[425994635,1782087041000,-151.0,0.00013492,2]
[425994637,1782087041000,-151.0,0.00013492,2]
[425994645,1782087041000,-340.36332192,0.00013499,2]
[425994649,1782087041000,-500.0,0.000135,2]
[425994647,1782087041000,-33228.28125952,0.000135,2]
[425994621,1782087041000,-203.5141163,0.00012786,2]
[425994601,1782087041000,-300.0,0.00012786,2]
[425994596,1782087041000,-300.0,0.00012786,2]
[425994600,1782087041000,-300.0,0.00012786,2]
[425994562,1782087041000,-306.24,0.0001098,2]
[425994563,1782087041000,-306.29,0.00010981,2]
[425994565,1782087041000,-306.24,0.00011197,2]
[425994567,1782087041000,-306.29,0.0001127,2]
[425994569,1782087041000,-306.24,0.00011415,2]
[425994560,1782087041000,-346.29526289,0.00010871,2]
[425994557,1782087041000,-753.43478918,0.00010655,2]
[425994555,1782087041000,-518.39507672,0.00010548,2]
[425994558,1782087041000,-187.44541979,0.00010762,2]
[425994581,1782087041000,-306.29,0.00012137,2]
[425994578,1782087041000,-1704.63432095,0.00011848,2]
[425994587,1782087041000,-306.27,0.00012415,2]
[425994589,1782087041000,-306.36,0.00012471,2]
[425994570,1782087041000,-306.36,0.00011559,2]
[425994572,1782087041000,-306.29,0.00011559,2]
[425994584,1782087041000,-306.36,0.00012167,2]
[425994576,1782087041000,-722.02924245,0.00011848,2]
[425994579,1782087041000,-306.36,0.00011863,2]
[425994574,1782087041000,-306.29,0.00011848,2]
[425994593,1782087041000,-3044.3950463,0.00012537,2]
[425994591,1782087041000,-300.0,0.00012536,2]
[425994594,1782087041000,-300.0,0.00012786,2]
[425994650,1782087041000,-3736.78063402,0.0001362,2]
[425994605,1782087041000,-300.0,0.00012786,2]
[425994603,1782087041000,-300.0,0.00012786,2]
[425994598,1782087041000,-300.0,0.00012786,2]
[425994644,1782087041000,-151.0,0.00013492,2]
[425994608,1782087041000,-300.0,0.00012786,2]
[425994652,1782087041000,-500.0,0.00013774,2]
[425994684,1782087041000,-500.0,0.00016429,2]
[425994685,1782087041000,-500.0,0.00016429,2]
[425994683,1782087041000,-500.0,0.00016429,2]
[425994697,1782087041000,-500.0,0.00016438,2]
[425994700,1782087041000,-195.192,0.00016466,2]
[425994703,1782087041000,-179.14,0.00016703,2]
[425994704,1782087041000,-179.14,0.00016705,2]
[425994706,1782087041000,-535.89,0.00016712,2]
[425994698,1782087041000,-731.472,0.00016466,2]
[425994708,1782087041000,-767.02,0.00016712,2]
[425994701,1782087041000,-445.0,0.00016466,2]
[425994695,1782087041000,-767.02,0.00016438,2]
[425994707,1782087041000,-500.0,0.00016712,2]
[425994710,1782087041000,-500.0,0.00016712,2]
[425994712,1782087041000,-257.462596,0.00016828,2]
[425994717,1782087041000,-500.0,0.00016958,2]
[425994719,1782087041000,-625.61744492,0.00016958,2]
[425994721,1782087041000,-559.71,0.00016958,2]
[425994718,1782087041000,-630.86,0.00016958,2]
[425994727,1782087041000,-598.3,0.00016958,2]
[425994722,1782087041000,-717.82,0.00016958,2]
[425994725,1782087041000,-1000.03,0.00016958,2]
[425994724,1782087041000,-500.0,0.00016958,2]
[425994654,1782087041000,-507.53336461,0.00014048,2]
[425994713,1782087041000,-500.0,0.00016958,2]
[425994681,1782087041000,-151.5,0.00016429,2]
[425994715,1782087041000,-500.0,0.00016958,2]
[425994677,1782087041000,-500.0,0.00016429,2]
[425994655,1782087041000,-720.0,0.00014345,2]
[425994680,1782087041000,-500.0,0.00016429,2]
[425994662,1782087041000,-291.7096592,0.0001576,2]
[425994661,1782087041000,-257.462596,0.00015521,2]
[425994659,1782087041000,-1286.66487975,0.00015421,2]
[425994657,1782087041000,-3736.78063399,0.00014955,2]
[425994663,1782087041000,-864.0,0.00015779,2]
[425994665,1782087041000,-237.67331526,0.00015779,2]
[425994668,1782087041000,-206.12194465,0.00016429,2]
[425994666,1782087041000,-257.462596,0.00016174,2]
[425994667,1782087041000,-3736.78063399,0.00016289,2]
[425994664,1782087041000,-160.0,0.00015779,2]
[425994669,1782087041000,-296.11180433,0.00016429,2]
[425994671,1782087041000,-151.5,0.00016429,2]
[425994670,1782087041000,-151.5,0.00016429,2]
[425994690,1782087041000,-500.0,0.00016429,2]
[425994688,1782087041000,-500.0,0.00016429,2]
[425994692,1782087041000,-535.89,0.00016438,2]
[425994691,1782087041000,-277.71993064,0.00016429,2]
[425994678,1782087041000,-243.70006729,0.00016429,2]
[425994694,1782087041000,-500.0,0.00016438,2]
[425994673,1782087041000,-151.5,0.00016429,2]
[425994672,1782087041000,-151.5,0.00016429,2]
[425994674,1782087041000,-500.0,0.00016429,2]
[425994676,1782087041000,-151.5,0.00016429,2]
[425994687,1782087041000,-500.0,0.00016429,2]
[425994775,1782087042000,-500.0,0.0001706,2]
[425994782,1782087042000,-1434.69,0.0001706,2]
[425994781,1782087042000,-500.0,0.0001706,2]
[425994774,1782087042000,-500.0,0.0001706,2]
[425994771,1782087042000,-500.0,0.0001706,2]
[425994777,1782087042000,-500.0,0.0001706,2]
[425994773,1782087042000,-500.0,0.0001706,2]
[425994769,1782087042000,-500.0,0.0001706,2]
[425994767,1782087042000,-500.0,0.0001706,2]
[425994768,1782087042000,-500.0,0.0001706,2]
[425994783,1782087042000,-1763.49,0.0001706,2]
[425994779,1782087042000,-500.0,0.0001706,2]
[425994778,1782087042000,-500.0,0.0001706,2]
[425994801,1782087042000,-518.52,0.0001706,2]
[425994786,1782087042000,-500.0,0.0001706,2]
[425994785,1782087042000,-879.87033975,0.0001706,2]
[425994790,1782087042000,-1413.02,0.0001706,2]
[425994788,1782087042000,-500.0,0.0001706,2]
[425994792,1782087042000,-500.0,0.0001706,2]
[425994789,1782087042000,-340.38260032,0.0001706,2]
[425994791,1782087042000,-500.0,0.0001706,2]
[425994793,1782087042000,-500.0,0.0001706,2]
[425994795,1782087042000,-570.80472358,0.0001706,2]
[425994794,1782087042000,-267.25449753,0.0001706,2]
[425994798,1782087042000,-500.0,0.0001706,2]
[425994804,1782087042000,-500.0,0.0001706,2]
[425994766,1782087042000,-397.70050439,0.0001706,2]
[425994780,1782087042000,-610.06,0.0001706,2]
[425994765,1782087042000,-487.68769345,0.0001706,2]
[425994735,1782087042000,-958.0,0.00016959,2]
[425994763,1782087042000,-500.0,0.0001706,2]
[425994802,1782087042000,-500.0,0.0001706,2]
[425994730,1782087042000,-500.0,0.00016958,2]
[425994733,1782087042000,-1419.0,0.00016959,2]
[425994731,1782087042000,-500.0,0.00016958,2]
[425994744,1782087042000,-500.0,0.00016986,2]
[425994737,1782087042000,-1842.0,0.00016959,2]
[425994738,1782087042000,-535.89,0.00016986,2]
[425994745,1782087042000,-649.18318146,0.00017,2]
[425994747,1782087042000,-500.0,0.0001706,2]
[425994740,1782087042000,-500.0,0.00016986,2]
[425994742,1782087042000,-767.02,0.00016986,2]
[425994749,1782087042000,-500.0,0.0001706,2]
[425994746,1782087042000,-500.0,0.0001706,2]
[425994750,1782087042000,-500.0,0.0001706,2]
[425994748,1782087042000,-500.0,0.0001706,2]
[425994752,1782087042000,-500.0,0.0001706,2]
[425994753,1782087042000,-500.0,0.0001706,2]
[425994751,1782087042000,-500.0,0.0001706,2]
[425994757,1782087042000,-500.0,0.0001706,2]
[425994758,1782087042000,-500.0,0.0001706,2]
[425994756,1782087042000,-500.0,0.0001706,2]
[425994755,1782087042000,-500.0,0.0001706,2]
[425994754,1782087042000,-858.0,0.0001706,2]
[425994760,1782087042000,-929.20631428,0.0001706,2]
[425994759,1782087042000,-935.54,0.0001706,2]
[425994761,1782087042000,-500.0,0.0001706,2]
[425994762,1782087042000,-500.0,0.0001706,2]
[425994764,1782087042000,-500.0,0.0001706,2]
[425994796,1782087042000,-500.0,0.0001706,2]
[425994729,1782087042000,-1026.41,0.00016958,2]
[425994797,1782087042000,-1543.65,0.0001706,2]
[425994835,1782087042000,-858.0,0.00017334,2]
[425994836,1782087042000,-500.0,0.00017334,2]
[425994840,1782087042000,-935.54,0.00017334,2]
[425994841,1782087042000,-586.50168678,0.00017334,2]
[425994838,1782087042000,-500.0,0.00017334,2]
[425994837,1782087042000,-500.0,0.00017334,2]
[425994842,1782087042000,-500.0,0.00017334,2]
[425994839,1782087042000,-500.0,0.00017334,2]
[425994844,1782087042000,-500.0,0.00017334,2]
[425994854,1782087042000,-500.0,0.00017334,2]
[425994855,1782087042000,-610.06,0.00017334,2]
[425994843,1782087042000,-500.0,0.00017334,2]
[425994846,1782087042000,-500.0,0.00017334,2]
[425994845,1782087042000,-500.0,0.00017334,2]
[425994849,1782087042000,-500.0,0.00017334,2]
[425994847,1782087042000,-500.0,0.00017334,2]
[425994848,1782087042000,-500.0,0.00017334,2]
[425994851,1782087042000,-500.0,0.00017334,2]
[425994852,1782087042000,-500.0,0.00017334,2]
[425994850,1782087042000,-500.0,0.00017334,2]
[425994853,1782087042000,-500.0,0.00017334,2]
[425994859,1782087042000,-1434.69,0.00017334,2]
[425994857,1782087042000,-500.0,0.00017334,2]
[425994860,1782087042000,-1763.49,0.00017334,2]
[425994865,1782087042000,-500.0,0.00017334,2]
[425994866,1782087042000,-1413.02,0.00017334,2]
[425994800,1782087042000,-500.0,0.0001706,2]
[425994832,1782087042000,-500.0,0.00017334,2]
[425994833,1782087042000,-500.0,0.00017334,2]
[425994862,1782087042000,-500.0,0.00017334,2]
[425994831,1782087042000,-500.0,0.00017334,2]
[425994834,1782087042000,-500.0,0.00017334,2]
[425994799,1782087042000,-500.0,0.0001706,2]
[425994805,1782087042000,-160.0,0.00017162,2]
[425994807,1782087042000,-923.287364,0.00017162,2]
[425994806,1782087042000,-541.643682,0.00017162,2]
[425994816,1782087042000,-598.3,0.00017232,2]
[425994812,1782087042000,-559.71,0.00017232,2]
[425994809,1782087042000,-500.0,0.00017232,2]
[425994811,1782087042000,-630.86,0.00017232,2]
[425994808,1782087042000,-500.0,0.00017232,2]
[425994810,1782087042000,-500.0,0.00017232,2]
[425994817,1782087042000,-1026.41,0.00017232,2]
[425994815,1782087042000,-1000.03,0.00017232,2]
[425994813,1782087042000,-717.82,0.00017232,2]
[425994803,1782087042000,-500.0,0.0001706,2]
[425994819,1782087042000,-500.0,0.00017232,2]
[425994827,1782087042000,-500.0,0.00017334,2]
[425994830,1782087042000,-500.0,0.00017334,2]
[425994824,1782087042000,-500.0,0.0001726,2]
[425994826,1782087042000,-500.0,0.0001726,2]
[425994814,1782087042000,-500.0,0.00017232,2]
[425994823,1782087042000,-535.89,0.0001726,2]
[425994822,1782087042000,-1986.081064,0.00017259,2]
[425994825,1782087042000,-767.02,0.0001726,2]
[425994821,1782087042000,-1073.040532,0.00017259,2]
[425994820,1782087042000,-160.0,0.00017259,2]
[425994818,1782087042000,-500.0,0.00017232,2]
[425994829,1782087042000,-500.0,0.00017334,2]
[425994828,1782087042000,-502.85543436,0.00017334,2]
[425994912,1782087043000,-598.3,0.00017506,2]
[425994911,1782087043000,-1000.03,0.00017506,2]
[425994908,1782087043000,-559.71,0.00017506,2]
[425994906,1782087043000,-500.0,0.00017506,2]
[425994902,1782087043000,-2936.113408,0.0001744,2]
[425994904,1782087043000,-215.87195099,0.00017506,2]
[425994914,1782087043000,-500.0,0.00017506,2]
[425994913,1782087043000,-1026.41,0.00017506,2]
[425994905,1782087043000,-500.0,0.00017506,2]
[425994898,1782087043000,-191.78276162,0.00017414,2]
[425994907,1782087043000,-630.86,0.00017506,2]
[425994910,1782087043000,-500.0,0.00017506,2]
[425994917,1782087043000,-500.0,0.00017534,2]
[425994915,1782087043000,-235.83,0.00017506,2]
[425994916,1782087043000,-535.89,0.00017534,2]
[425994920,1782087043000,-220.105667,0.00017534,2]
[425994919,1782087043000,-500.0,0.00017534,2]
[425994926,1782087043000,-581.93,0.00017589,3]
[425994922,1782087043000,-220.105667,0.00017534,2]
[425994918,1782087043000,-767.02,0.00017534,2]
[425994921,1782087043000,-220.105667,0.00017534,2]
[425994925,1782087043000,-160.0,0.00017568,2]
[425994923,1782087043000,-220.105667,0.00017534,2]
[425994903,1782087043000,-257.462596,0.00017481,2]
[425994924,1782087043000,-160.0,0.00017568,2]
[425994909,1782087043000,-717.82,0.00017506,2]
[425994892,1782087043000,-500.0,0.00017414,2]
[425994876,1782087043000,-500.0,0.00017334,2]
[425994893,1782087043000,-500.0,0.00017414,2]
[425994928,1782087043000,-487.0,0.00017599,2]
[425994870,1782087043000,-500.0,0.00017334,2]
[425994867,1782087043000,-500.0,0.00017334,2]
[425994873,1782087043000,-500.0,0.00017334,2]
[425994868,1782087043000,-500.0,0.00017334,2]
[425994872,1782087043000,-500.0,0.00017334,2]
[425994871,1782087043000,-1543.65,0.00017334,2]
[425994869,1782087043000,-500.0,0.00017334,2]
[425994875,1782087043000,-518.52,0.00017334,2]
[425994887,1782087043000,-500.0,0.00017414,2]
[425994890,1782087043000,-500.0,0.00017414,2]
[425994874,1782087043000,-500.0,0.00017334,2]
[425994899,1782087043000,-320.000001,0.0001744,2]
[425994891,1782087043000,-500.0,0.00017414,2]
[425994877,1782087043000,-500.0,0.00017334,2]
[425994879,1782087043000,-500.0,0.00017334,2]
[425994881,1782087043000,-1000.0,0.00017357,2]
[425994885,1782087043000,-500.0,0.00017414,2]
[425994882,1782087043000,-500.0,0.00017414,2]
[425994883,1782087043000,-500.0,0.00017414,2]
[425994896,1782087043000,-500.0,0.00017414,2]
[425994901,1782087043000,-1548.056704,0.0001744,2]
[425994895,1782087043000,-500.0,0.00017414,2]
[425994897,1782087043000,-500.0,0.00017414,2]
[425994894,1782087043000,-500.0,0.00017414,2]
[425994900,1782087043000,-160.0,0.0001744,2]
[425994886,1782087043000,-500.0,0.00017414,2]
[425994938,1782087043000,-487.0,0.00017599,2]
[425994927,1782087043000,-290.97,0.00017589,3]
[425994981,1782087043000,-935.54,0.00017608,2]
[425994965,1782087043000,-863.750733,0.00017599,2]
[425994967,1782087043000,-863.750733,0.00017599,2]
[425994973,1782087043000,-500.0,0.00017608,2]
[425994972,1782087043000,-500.0,0.00017608,2]
[425994975,1782087043000,-500.0,0.00017608,2]
[425994978,1782087043000,-500.0,0.00017608,2]
[425994977,1782087043000,-500.0,0.00017608,2]
[425994976,1782087043000,-858.0,0.00017608,2]
[425994979,1782087043000,-500.0,0.00017608,2]
[425994980,1782087043000,-500.0,0.00017608,2]
[425994983,1782087043000,-500.0,0.00017608,2]
[425994984,1782087043000,-500.0,0.00017608,2]
[425994964,1782087043000,-863.750733,0.00017599,2]
[425994982,1782087043000,-500.0,0.00017608,2]
[425994991,1782087043000,-500.0,0.00017608,2]
[425994986,1782087043000,-500.0,0.00017608,2]
[425994987,1782087043000,-500.0,0.00017608,2]
[425994990,1782087043000,-500.0,0.00017608,2]
[425994993,1782087043000,-500.0,0.00017608,2]
[425994989,1782087043000,-500.0,0.00017608,2]
[425994992,1782087043000,-500.0,0.00017608,2]
[425994988,1782087043000,-500.0,0.00017608,2]
[425994995,1782087043000,-610.06,0.00017608,2]
[425994996,1782087043000,-500.0,0.00017608,2]
[425994930,1782087043000,-487.0,0.00017599,2]
[425994994,1782087043000,-500.0,0.00017608,2]
[425994985,1782087043000,-500.0,0.00017608,2]
[425994966,1782087043000,-863.750733,0.00017599,2]
[425994974,1782087043000,-500.0,0.00017608,2]
[425994960,1782087043000,-644.421276,0.00017599,2]
[425994929,1782087043000,-487.0,0.00017599,2]
[425994932,1782087043000,-487.0,0.00017599,2]
[425994933,1782087043000,-487.0,0.00017599,2]
[425994931,1782087043000,-487.0,0.00017599,2]
[425994934,1782087043000,-487.0,0.00017599,2]
[425994935,1782087043000,-487.0,0.00017599,2]
[425994937,1782087043000,-487.0,0.00017599,2]
[425994936,1782087043000,-487.0,0.00017599,2]
[425994963,1782087043000,-644.421276,0.00017599,2]
[425994941,1782087043000,-487.0,0.00017599,2]
[425994948,1782087043000,-487.0,0.00017599,2]
[425994943,1782087043000,-487.0,0.00017599,2]
[425994947,1782087043000,-487.0,0.00017599,2]
[425994949,1782087043000,-487.0,0.00017599,2]
[425994939,1782087043000,-487.0,0.00017599,2]
[425994950,1782087043000,-960.28,0.00017599,2]
[425994945,1782087043000,-487.0,0.00017599,2]
[425994959,1782087043000,-644.421276,0.00017599,2]
[425994971,1782087043000,-500.0,0.00017608,2]
[425994970,1782087043000,-500.0,0.00017608,2]
[425994968,1782087043000,-901.42062281,0.000176,2]
[425994969,1782087043000,-500.0,0.00017608,2]
[425994953,1782087043000,-237.302891,0.00017599,2]
[425994955,1782087043000,-237.302891,0.00017599,2]
[425994951,1782087043000,-237.302891,0.00017599,2]
[425994952,1782087043000,-237.302891,0.00017599,2]
[425994957,1782087043000,-644.421276,0.00017599,2]
[425995035,1782087044000,-500.0,0.00017698,2]
[425995033,1782087044000,-186.9888,0.00017698,2]
[425995037,1782087044000,-264.99441175,0.00017698,2]
[425995039,1782087044000,-501.28827127,0.00017698,2]
[425995042,1782087044000,-500.0,0.00017698,2]
[425995031,1782087044000,-500.0,0.00017698,2]
[425995032,1782087044000,-500.0,0.00017698,2]
[425995029,1782087044000,-220.105667,0.00017687,2]
[425995027,1782087044000,-220.105667,0.00017687,2]
[425995036,1782087044000,-500.0,0.00017698,2]
[425995026,1782087044000,-2554.821,0.00017687,2]
[425995034,1782087044000,-500.0,0.00017698,2]
[425995041,1782087044000,-2613.07,0.00017698,2]
[425995049,1782087044000,-237.302891,0.00017698,2]
[425995043,1782087044000,-500.0,0.00017698,2]
[425995038,1782087044000,-500.0,0.00017698,2]
[425995045,1782087044000,-500.0,0.00017698,2]
[425995055,1782087044000,-500.0,0.00017698,2]
[425995044,1782087044000,-500.0,0.00017698,2]
[425995046,1782087044000,-500.0,0.00017698,2]
[425995047,1782087044000,-237.302891,0.00017698,2]
[425995053,1782087044000,-644.421276,0.00017698,2]
[425995052,1782087044000,-1661.73,0.00017698,2]
[425995050,1782087044000,-237.302891,0.00017698,2]
[425995051,1782087044000,-237.302891,0.00017698,2]
[425995025,1782087044000,-500.0,0.00017687,2]
[425995040,1782087044000,-521.04,0.00017698,2]
[425995024,1782087044000,-530.9,0.00017687,2]
[425995005,1782087044000,-500.0,0.00017608,2]
[425995021,1782087044000,-500.0,0.00017687,2]
[425994997,1782087044000,-1434.69,0.00017608,2]
[425994998,1782087044000,-1763.49,0.00017608,2]
[425994999,1782087044000,-500.0,0.00017608,2]
[425995001,1782087044000,-1413.02,0.00017608,2]
[425995003,1782087044000,-500.0,0.00017608,2]
[425995000,1782087044000,-500.0,0.00017608,2]
[425995002,1782087044000,-500.0,0.00017608,2]
[425995004,1782087044000,-500.0,0.00017608,2]
[425995006,1782087044000,-1543.65,0.00017608,2]
[425995008,1782087044000,-500.0,0.00017608,2]
[425995012,1782087044000,-500.0,0.00017608,2]
[425995013,1782087044000,-500.0,0.00017608,2]
[425995028,1782087044000,-220.105667,0.00017687,2]
[425995007,1782087044000,-500.0,0.00017608,2]
[425995016,1782087044000,-151.0,0.00017619,2]
[425995010,1782087044000,-518.52,0.00017608,2]
[425995018,1782087044000,-900.8611987,0.00017664,2]
[425995017,1782087044000,-3736.78063399,0.00017624,2]
[425995015,1782087044000,-151.0,0.00017619,2]
[425995011,1782087044000,-500.0,0.00017608,2]
[425995014,1782087044000,-151.0,0.00017619,2]
[425995020,1782087044000,-1591.68,0.00017687,2]
[425995023,1782087044000,-500.0,0.00017687,2]
[425995019,1782087044000,-872.92,0.00017677,3]
[425995030,1782087044000,-220.105667,0.00017687,2]
[425995022,1782087044000,-9658.61,0.00017687,2]
[425995009,1782087044000,-500.0,0.00017608,2]
[425995054,1782087044000,-644.421276,0.00017698,2]
[425995048,1782087044000,-227.64796002,0.00017698,2]
[425995058,1782087044000,-490.83054443,0.00017698,2]
[425995091,1782087044000,-500.0,0.0001778,2]
[425995101,1782087044000,-1000.03,0.0001778,2]
[425995098,1782087044000,-151.0,0.0001778,2]
[425995099,1782087044000,-281.55618,0.0001778,2]
[425995093,1782087044000,-500.0,0.0001778,2]
[425995088,1782087044000,-195.6097,0.000177,2]
[425995097,1782087044000,-151.0,0.0001778,2]
[425995096,1782087044000,-717.82,0.0001778,2]
[425995094,1782087044000,-630.86,0.0001778,2]
[425995095,1782087044000,-559.71,0.0001778,2]
[425995100,1782087044000,-500.0,0.0001778,2]
[425995103,1782087044000,-1026.41,0.0001778,2]
[425995089,1782087044000,-1545.9521,0.000177,2]
[425995104,1782087044000,-500.0,0.0001778,2]
[425995113,1782087044000,-500.0,0.00017798,2]
[425995106,1782087044000,-500.0,0.00017798,2]
[425995114,1782087044000,-500.0,0.00017798,2]
[425995112,1782087044000,-500.0,0.00017798,2]
[425995105,1782087044000,-500.0,0.00017798,2]
[425995108,1782087044000,-500.0,0.00017798,2]
[425995107,1782087044000,-500.0,0.00017798,2]
[425995109,1782087044000,-500.0,0.00017798,2]
[425995110,1782087044000,-500.0,0.00017798,2]
[425995115,1782087044000,-500.0,0.00017798,2]
[425995116,1782087044000,-500.0,0.00017798,2]
[425995056,1782087044000,-1000.0,0.00017698,2]
[425995111,1782087044000,-640.58071433,0.00017798,2]
[425995087,1782087044000,-1292.32,0.000177,2]
[425995102,1782087044000,-598.3,0.0001778,2]
[425995084,1782087044000,-1611.72,0.000177,2]
[425995059,1782087044000,-644.421276,0.00017698,2]
[425995083,1782087044000,-1611.722,0.000177,2]
[425995063,1782087044000,-1000.0,0.00017698,2]
[425995065,1782087044000,-1000.0,0.00017698,2]
[425995060,1782087044000,-1000.0,0.00017698,2]
[425995066,1782087044000,-1000.0,0.00017698,2]
[425995057,1782087044000,-509.16945557,0.00017698,2]
[425995062,1782087044000,-1000.0,0.00017698,2]
[425995064,1782087044000,-1000.0,0.00017698,2]
[425995068,1782087044000,-1000.0,0.00017698,2]
[425995067,1782087044000,-1000.0,0.00017698,2]
[425995069,1782087044000,-644.421276,0.00017698,2]
[425995070,1782087044000,-1000.0,0.00017698,2]
[425995071,1782087044000,-863.750733,0.00017698,2]
[425995061,1782087044000,-1000.0,0.00017698,2]
[425995074,1782087044000,-863.750733,0.00017698,2]
[425995078,1782087044000,-151.0,0.000177,2]
[425995086,1782087044000,-445.2809,0.000177,2]
[425995080,1782087044000,-901.42062281,0.000177,2]
[425995076,1782087044000,-151.0,0.000177,2]
[425995079,1782087044000,-151.0,0.000177,2]
[425995082,1782087044000,-1611.722,0.000177,2]
[425995085,1782087044000,-292.19411304,0.000177,2]
[425995077,1782087044000,-151.0,0.000177,2]
[425995075,1782087044000,-165.59332112,0.00017699,2]
[425995073,1782087044000,-863.750733,0.00017698,2]
[425995072,1782087044000,-863.750733,0.00017698,2]
[425995081,1782087044000,-151.0,0.000177,2]
[425995160,1782087045000,-644.421276,0.00017798,2]
[425995163,1782087045000,-863.750733,0.00017798,2]
[425995165,1782087045000,-863.750733,0.00017798,2]
[425995156,1782087045000,-237.302891,0.00017798,2]
[425995164,1782087045000,-863.750733,0.00017798,2]
[425995159,1782087045000,-644.421276,0.00017798,2]
[425995161,1782087045000,-644.421276,0.00017798,2]
[425995157,1782087045000,-500.0,0.00017798,2]
[425995154,1782087045000,-237.302891,0.00017798,2]
[425995153,1782087045000,-500.0,0.00017798,2]
[425995146,1782087045000,-500.0,0.00017798,2]
[425995147,1782087045000,-500.0,0.00017798,2]
[425995155,1782087045000,-237.302891,0.00017798,2]
[425995158,1782087045000,-237.302891,0.00017798,2]
[425995174,1782087045000,-500.0,0.00017808,2]